Body Name,Body Unit,Service Label,Service Code,Organisational Unit ,Expenditure,Payment Date,Transaction Number ,Net Payment ,Supplier Name,Supplier ID
North West Leicestershire District Council,31UH ,Legal & Democratic,LDLS,Legal Services,Training,08/08/2012,1241588,500.00,Hinckley & Bosworth Borough Council,A000770
North West Leicestershire District Council,31UH ,Leisure & Culture,CULTEV,Cultural Services Arts & Events,Events - Street Entertainers for Picnic in the Park,15/08/2012,1237660,500.00,What A Palaver,A036948
North West Leicestershire District Council,31UH ,Housing Repairs,HRAHRM,HRA Housing Repairs & Maintenance,Gas & Electricity - Boiler replacement,08/08/2012,1241479,508.21,Lakers UK,A031787
North West Leicestershire District Council,31UH ,Leisure Centres,CDCC,Castle Donington Community College,Portable accommodation,15/08/2012,1241713,509.26,Elliott Group Limited,A005413
North West Leicestershire District Council,31UH ,Housing Repairs,HRAHRM,HRA Housing Repairs & Maintenance,Training,08/08/2012,1241297,530.00,Stephenson College,A000373
North West Leicestershire District Council,31UH ,Street Management,ENOT,Environment Transport,Vehicle Parts,01/08/2012,1241119,535.69,Dennis Eagle Limited,A000522
North West Leicestershire District Council,31UH ,Housing Repairs,HRAHRM,HRA Housing Repairs & Maintenance,Gas & Electricity - Boiler replacement,01/08/2012,1240914,539.39,Lakers UK,A031787
North West Leicestershire District Council,31UH ,Housing Repairs,HRAHRM,HRA Housing Repairs & Maintenance,Gas & Electricity - Boiler replacement,08/08/2012,1241546,539.39,Lakers UK,A031787
North West Leicestershire District Council,31UH ,Housing Repairs,HRAHRM,HRA Housing Repairs & Maintenance,Gas & Electricity - Boiler replacement,08/08/2012,1241547,539.39,Lakers UK,A031787
North West Leicestershire District Council,31UH ,Housing Repairs,HRAHRM,HRA Housing Repairs & Maintenance,Gas & Electricity - Boiler replacement,08/08/2012,1241548,539.39,Lakers UK,A031787
North West Leicestershire District Council,31UH ,Housing Repairs,HRAHRM,HRA Housing Repairs & Maintenance,Housing Maintenance - Supply and Fit of Composite Doors and UPVC Frames,01/08/2012,1240850,539.91,I G Doors Limited,A038041
North West Leicestershire District Council,31UH ,Housing Repairs,HRAHRM,HRA Housing Repairs & Maintenance,Housing Maintenance - Supply and Fit of Composite Doors and UPVC Frames,01/08/2012,1240854,539.91,I G Doors Limited,A038041
North West Leicestershire District Council,31UH ,Housing Repairs,HRAHRM,HRA Housing Repairs & Maintenance,Housing Maintenance - Supply and Fit of Composite Doors and UPVC Frames,01/08/2012,1240861,539.91,I G Doors Limited,A038041
North West Leicestershire District Council,31UH ,Housing Repairs,HRAHRM,HRA Housing Repairs & Maintenance,Housing Maintenance - Supply and Fit of Composite Doors and UPVC Frames,01/08/2012,1240873,539.91,I G Doors Limited,A038041
North West Leicestershire District Council,31UH ,Housing Repairs,HRAHRM,HRA Housing Repairs & Maintenance,Housing Maintenance - Supply and Fit of Composite Doors and UPVC Frames,01/08/2012,1240874,539.91,I G Doors Limited,A038041
North West Leicestershire District Council,31UH ,Housing Repairs,HRAHRM,HRA Housing Repairs & Maintenance,Housing Maintenance - Supply and Fit of Composite Doors and UPVC Frames,01/08/2012,1240875,539.91,I G Doors Limited,A038041
North West Leicestershire District Council,31UH ,Property Services,PROPFM,Property Facilities Management, Housing- Fire Risk Assessments,08/08/2012,1241475,550.00,London Fire Consultants & Design,A038408
North West Leicestershire District Council,31UH ,Leisure Centres,HPBC,Hood Park Bar and Catering,Catering Supplies - Confectionery.,08/08/2012,1241386,553.03,Palmer Harvey Mclane Ltd,A001264
North West Leicestershire District Council,31UH ,Street Management,ENOP,Environment Parks,Horticulture - Maintenance Services,22/08/2012,1242159,558.00,Rigby Taylor Limited,A001392
North West Leicestershire District Council,31UH ,Housing Strategy,HS,Community - Housing Strategy,Accomodation - Bed and Breakfast for Housing Strategy,22/08/2012,1242372,560.00,Pinewood Lodge,A032364
North West Leicestershire District Council,31UH ,Street Management,ENOT,Environment Transport,PPE,01/08/2012,1241132,564.13,Westbury Industrial Supplies Limited,A009933
North West Leicestershire District Council,31UH ,Leisure Centres,HPLC,Hood Park Leisure Centre,Telecommunication - Line Rental,01/08/2012,1241056,580.83,Virgin Media Business,A035373
North West Leicestershire District Council,31UH ,Housing Repairs,HRAHRM,HRA Housing Repairs & Maintenance,Gas & Electricity - Boiler replacement,01/08/2012,1240886,580.98,Lakers UK,A031787
North West Leicestershire District Council,31UH ,Street Management,ENOP,Environment Parks,Top Dressing,01/08/2012,1240781,590.00,Sherriff Amenity,A034991
North West Leicestershire District Council,31UH ,Leisure Centres,HLBC,Hermitage Bar & Catering,Catering Supplies - Confectionery.,08/08/2012,1241249,594.26,Palmer Harvey Mclane Ltd,A001264
North West Leicestershire District Council,31UH ,Information Technology,ICT,ICT Services,Printing - Part of Danwood,22/08/2012,1242221,604.65,Danwood Finance,A036577
North West Leicestershire District Council,31UH ,Housing,HRAHM,HRA Housing Management,Energy Surveys,08/08/2012,1241336,612.00,Energico,A039091
North West Leicestershire District Council,31UH ,Housing Repairs,HRAHRM,HRA Housing Repairs & Maintenance,Housing Maintenance - Supply and Fit of Composite Doors and UPVC Frames,01/08/2012,1240866,620.25,I G Doors Limited,A038041
North West Leicestershire District Council,31UH ,Street Management,ENOGT,Environment General Technician,Rent payments,15/08/2012,1241920,622.50,Leicestershire County Council,A000950
North West Leicestershire District Council,31UH ,Property Services,PROPFM,Property Facilities Management,Building - General Maintenance works - Minor framework,22/08/2012,1242157,624.00,Alf Wright Construction Limited,A036239
North West Leicestershire District Council,31UH ,Housing Repairs,HRAHRM,HRA Housing Repairs & Maintenance,Vehicles - Internal Racking,08/08/2012,1241311,629.46,Edstrom of Sweden,A036773
North West Leicestershire District Council,31UH ,Housing Repairs,HRAHRM,HRA Housing Repairs & Maintenance,Vehicles - Internal Racking,08/08/2012,1241315,629.46,Edstrom of Sweden,A036773
North West Leicestershire District Council,31UH ,Leisure Centres,HPLC,Hood Park Leisure Centre,Leisure - Swimwear and accessories,22/08/2012,1242137,634.50,Zoggs International Ltd,A001833
North West Leicestershire District Council,31UH ,Planning & Development,ECCTV,Environment - Town Centre/CCTV,Security Services - CCTV Maintenance,01/08/2012,1240773,637.50,Quadrant Security Group Limited,A035493
North West Leicestershire District Council,31UH ,Street Management,ENOT,Environment Transport,Fuel ,15/08/2012,1241931,639.40,Pace Petroleum Ltd,A034942
North West Leicestershire District Council,31UH ,Finance,FINPLA,Financial Planning,Training,22/08/2012,1242153,643.00,Hinckley & Bosworth Borough Council,A000770
North West Leicestershire District Council,31UH ,Finance,FINPLA,Financial Planning,Subscriptions,15/08/2012,1241936,651.00,Audit Commission,A000110
North West Leicestershire District Council,31UH ,Housing Repairs,HRAHRM,HRA Housing Repairs & Maintenance,Gas & Electricity - Boiler replacement,15/08/2012,1241759,654.90,Lakers UK,A031787
North West Leicestershire District Council,31UH ,Information Technology,ICT,ICT Services,Paper,15/08/2012,1241921,654.97,Antalis McNaughton Limited,A038178
North West Leicestershire District Council,31UH ,Housing Repairs,HRAHRM,HRA Housing Repairs & Maintenance,Vehicles - Internal Racking,08/08/2012,1241313,655.98,Edstrom of Sweden,A036773
North West Leicestershire District Council,31UH ,Housing Repairs,HRAHRM,HRA Housing Repairs & Maintenance,Gas & Electricity - Boiler replacement,01/08/2012,1240916,659.22,Lakers UK,A031787
North West Leicestershire District Council,31UH ,Street Management,ENOT,Environment Transport,Vehicle Parts - Recycling Vehicles ,22/08/2012,1242218,695.03,Terberg Matec UK Limited,A001647
North West Leicestershire District Council,31UH ,Street Management,ENOT,Environment Transport,Vehicle Parts,01/08/2012,1239444,695.86,Dennis Eagle Limited,A000522
North West Leicestershire District Council,31UH ,Street Management,ENOT,Environment Transport,Vehicle Parts,01/08/2012,1239526,695.86,Dennis Eagle Limited,A000522
North West Leicestershire District Council,31UH ,Street Management,ENOT,Environment Transport,Car repairs,01/08/2012,1241017,705.00,Mertrux Ltd,A035305
North West Leicestershire District Council,31UH ,Leisure Centres,HPLC,Hood Park Leisure Centre,Alarms - Fire and Security,01/08/2012,1241028,713.27,ADT Fire And Security,A000021
North West Leicestershire District Council,31UH ,Housing Repairs,HRAHRM,HRA Housing Repairs & Maintenance,Building - General Maintenance works - Minor framework,01/08/2012,1240966,730.00,Alf Wright Construction Limited,A036239
North West Leicestershire District Council,31UH ,Housing Repairs,HRAHRM,HRA Housing Repairs & Maintenance,Gas & Electricity - Boiler replacement,15/08/2012,1241879,739.37,Lakers UK,A031787
North West Leicestershire District Council,31UH ,Housing Repairs,HRAHRM,HRA Housing Repairs & Maintenance,Scaffolding ( Erection and Hire),08/08/2012,1241306,750.00,Emperor Scaffolding Limited,A038405
North West Leicestershire District Council,31UH ,Environmental Health,EEHL,Environmental Health & Licensing,grant payment,15/08/2012,1241737,750.00,David Kirton Designs,A038386
North West Leicestershire District Council,31UH ,Leisure & Culture,CULTYP,Cultural Services Children & YoungPeople,home safety advice/equipment/assessment,15/08/2012,1241750,750.00,Safe Start-Home Safety,A039090
North West Leicestershire District Council,31UH ,Housing,HRAHM,HRA Housing Management,Printing - Lot 2 + 3,08/08/2012,1241339,750.00,The Barkby Thorpe Press,A037241
North West Leicestershire District Council,31UH ,Street Management,ENOT,Environment Transport,Sign Manufacturer,08/08/2012,1241455,750.00,Reflec Signs & Graphics Ltd,A025348
North West Leicestershire District Council,31UH ,Housing Repairs,HRAHRM,HRA Housing Repairs & Maintenance,Gas & Electricity - Boiler replacement,08/08/2012,1241524,772.66,Lakers UK,A031787
North West Leicestershire District Council,31UH ,Street Management,ENOT,Environment Transport,Veterinary costs,08/08/2012,1241235,780.00,First National Plant Rental Limited,A038744
North West Leicestershire District Council,31UH ,Leisure Centres,HPLC,Hood Park Leisure Centre,Water - Sewerage services,22/08/2012,1242148,789.00,Severn Trent Water Limited,A001468
North West Leicestershire District Council,31UH ,Leisure & Culture,CULTYP,Cultural Services Children & YoungPeople,Outdoor Clothing,08/08/2012,1241446,797.30,TTS Group Ltd,A036038
North West Leicestershire District Council,31UH ,Leisure Centres,MLC,Measham Leisure Centre,Claim,01/08/2012,1241052,833.34,Measham Leisure Centre,A027454
North West Leicestershire District Council,31UH ,Environmental Health,EES,Environmental Services,grant payment,22/08/2012,1242160,850.00,David Kirton Designs,A038386
North West Leicestershire District Council,31UH ,Planning & Development,EPP,Environment Planning Policy,Charity Services - Voluntary services,22/08/2012,1242007,850.00,MRC Community Action,A001208
North West Leicestershire District Council,31UH ,Planning & Development,ECCTV,Environment - Town Centre/CCTV,Energy - Electricity - Contract 1,22/08/2012,1242113,860.77,Southern Electric,A030266
North West Leicestershire District Council,31UH ,Housing Repairs,HRAHRM,HRA Housing Repairs & Maintenance,Gas & Electricity - Boiler replacement,08/08/2012,1241545,863.38,Lakers UK,A031787
North West Leicestershire District Council,31UH ,Street Management,ENOT,Environment Transport,Vehicle Repairs,08/08/2012,1241214,875.00,Ford & Slater Group Ltd,A000625
North West Leicestershire District Council,31UH ,Finance,EXCH,Exchequer Services,IT - software services,01/08/2012,1240811,881.24,Selima Limited,A010859
North West Leicestershire District Council,31UH ,Finance,EXCH,Exchequer Services,IT - software services,01/08/2012,1241142,894.95,Selima Limited,A010859
North West Leicestershire District Council,31UH ,Planning & Development,ECCTV,Environment - Town Centre/CCTV,Events,22/08/2012,1241978,900.00,Get The Specialist,A036449
North West Leicestershire District Council,31UH ,Housing Strategy,HS,Community - Housing Strategy,Accommodation - Bed and Breakfast,08/08/2012,1241230,910.00,The Cedars,A027796
North West Leicestershire District Council,31UH ,Planning & Development,ECCTV,Environment - Town Centre/CCTV,Energy - Electricity - Contract 1,01/08/2012,1241194,914.02,Southern Electric,A030266
North West Leicestershire District Council,31UH ,Housing Repairs,HRAHRM,HRA Housing Repairs & Maintenance,Gas & Electricity - Boiler replacement,08/08/2012,1241561,922.46,Lakers UK,A031787
North West Leicestershire District Council,31UH ,Legal & Democratic,LDLS,Legal Services,Legal - Case Management System inc. associated training and services for installation,01/08/2012,1241063,925.00,FWBS Limited,A037595
North West Leicestershire District Council,31UH ,Street Management,ENOP,Environment Parks,Grounds Maintenance - Landscaping,01/08/2012,1241033,937.50,Manor Landscapes,A035186
North West Leicestershire District Council,31UH ,Street Management,ENOT,Environment Transport,Vehicle Repairs - Trucks,01/08/2012,1239249,942.45,Digraph Transport Supplies Ltd,A000486
North West Leicestershire District Council,31UH ,Leisure Centres,HPLC,Hood Park Leisure Centre,Catering Supplies - Confectionery.,15/08/2012,1241721,946.96,Palmer Harvey Mclane Ltd,A001264
North West Leicestershire District Council,31UH ,Housing Repairs,HRAHRM,HRA Housing Repairs & Maintenance,Gas & Electricity - Boiler replacement,01/08/2012,1240927,955.12,Lakers UK,A031787
North West Leicestershire District Council,31UH ,Street Management,ENOT,Environment Transport,Vehicle Parts - Refuse Vehicles,01/08/2012,1240795,969.43,WasteParts UK Limited,A036236
North West Leicestershire District Council,31UH ,Property Services,PROPCL,Property Commercial Lettings,IT - Telephone and computing,08/08/2012,1241573,975.63,British Telecommunications Plc,A000233
North West Leicestershire District Council,31UH ,Environmental Health,EEHL,Environmental Health & Licensing,IT - Licensing systems,08/08/2012,1241232,976.00,NewAuto Ltd,A034761
North West Leicestershire District Council,31UH ,Housing Repairs,HRAHRM,HRA Housing Repairs & Maintenance,Gas & Electricity - Boiler replacement,01/08/2012,1240962,983.33,Lakers UK,A031787
North West Leicestershire District Council,31UH ,Street Management,ENOT,Environment Transport,Engineering Services,08/08/2012,1241360,997.60,Kovacs & Son Engineers,A000906
North West Leicestershire District Council,31UH ,Housing Repairs,HRAHRM,HRA Housing Repairs & Maintenance,Vehicles - Internal Racking,08/08/2012,1241310,997.95,Edstrom of Sweden,A036773
North West Leicestershire District Council,31UH ,Leisure Centres,HPLC,Hood Park Leisure Centre,Boiler Maintenance until March 2010 only,01/08/2012,1240992,998.00,Wellman Thermal Services Limited,A002298
North West Leicestershire District Council,31UH ,Street Management,ESS,Environment - Street Scene,Street Lighting works,15/08/2012,1242081,998.90,Leicestershire County Council,A028430
North West Leicestershire District Council,31UH ,Property Services,PROPCL,Property Commercial Lettings,Mail Supplies -Franking Machine,08/08/2012,1241211,"1,013.00",Purchase Power,A008204
North West Leicestershire District Council,31UH ,Housing Repairs,HRAHRM,HRA Housing Repairs & Maintenance,Gas & Electricity - Boiler replacement,08/08/2012,1241566,"1,063.01",Lakers UK,A031787
North West Leicestershire District Council,31UH ,Housing Repairs,HRAHRM,HRA Housing Repairs & Maintenance,Security Systems - Fire Detection,15/08/2012,1241894,"1,068.00",TECSERV UK LIMITED,A028261
North West Leicestershire District Council,31UH ,Street Management,ENOP,Environment Parks,Leisure - Play Equipment,01/08/2012,1240778,"1,100.19",Wicksteed Leisure Limited,A001789
North West Leicestershire District Council,31UH ,Communications,CP,Corporate - Communications,Postage - Franking machine leasing,01/08/2012,1241074,"1,120.07",Neopost Finance Limited,A031590
North West Leicestershire District Council,31UH ,Housing Repairs,HRAHRM,HRA Housing Repairs & Maintenance,Gas & Electricity - Boiler replacement,01/08/2012,1240960,"1,150.59",Lakers UK,A031787
North West Leicestershire District Council,31UH ,Housing Repairs,HRAHRM,HRA Housing Repairs & Maintenance,Waste - Tipping building,22/08/2012,1242414,"1,156.56",Ward Recycling,A035471
North West Leicestershire District Council,31UH ,Leisure Centres,HLC,Hermitage Leisure Centre,Coaches - Open Top,08/08/2012,1241160,"1,161.00",Roberts Coaches Limited,A017327
North West Leicestershire District Council,31UH ,Finance,EXCH,Exchequer Services,Debt Collection,08/08/2012,1241469,"1,161.24",Kings Armoured Security Services Ltd,A004468
North West Leicestershire District Council,31UH ,Information Technology,ICT,ICT Services,Photocopiers and consumables,03/08/2012,1241274,"1,167.59",The Danwood Group Ltd,A001301
North West Leicestershire District Council,31UH ,Street Management,ENOP,Environment Parks,Grounds Maintenance - Landscaping,22/08/2012,1242376,"1,212.50",Manor Landscapes,A035186
North West Leicestershire District Council,31UH ,Property Services,PROPFM,Property Facilities Management,Security Systems - Fire Detection,08/08/2012,1240184,"1,216.00",TECSERV UK LIMITED,A028261
North West Leicestershire District Council,31UH ,Environmental Health,EEHL,Environmental Health & Licensing,Animals - Boarding Kennels,01/08/2012,1241188,"1,218.57",College Garth Boarding Kennels,A000385
North West Leicestershire District Council,31UH ,Housing Repairs,HRAHRM,HRA Housing Repairs & Maintenance,Gas & Electricity - Boiler replacement,01/08/2012,1240964,"1,228.05",Lakers UK,A031787
North West Leicestershire District Council,31UH ,Housing Repairs,HRAHRM,HRA Housing Repairs & Maintenance,Gas & Electricity - Boiler replacement,08/08/2012,1241562,"1,249.86",Lakers UK,A031787
North West Leicestershire District Council,31UH ,Legal & Democratic,LDLS,Legal Services,Legal services,22/08/2012,1242249,"1,252.00",Browne Jacobson LLP,A000251
North West Leicestershire District Council,31UH ,Information Technology,ICT,ICT Services,Photocopiers and consumables,01/08/2012,1241064,"1,262.32",Danwood Contract Rentals,A033719
North West Leicestershire District Council,31UH ,Street Management,ENOT,Environment Transport,Road fund licences,15/08/2012,1241951,"1,300.00",Post Office Limited,A008559
North West Leicestershire District Council,31UH ,Street Management,ENOP,Environment Parks,Top Dressing,01/08/2012,1240815,"1,332.00",Sherriff Amenity,A034991
North West Leicestershire District Council,31UH ,Environmental Health,EES,Environmental Services,Training,15/08/2012,1241745,"1,372.92",Hinckley & Bosworth Borough Council,A000770
North West Leicestershire District Council,31UH ,Property Services,PROPFM,Property Facilities Management,Building - General Maintenance works - Minor framework,08/08/2012,1241246,"1,377.00",Alf Wright Construction Limited,A036239
North West Leicestershire District Council,31UH ,Housing Repairs,HRAHRM,HRA Housing Repairs & Maintenance,Gas & Electricity - Boiler replacement,01/08/2012,1240955,"1,409.18",Lakers UK,A031787
North West Leicestershire District Council,31UH ,Housing Repairs,HRAHRM,HRA Housing Repairs & Maintenance,Gas & Electricity - Boiler replacement,01/08/2012,1240944,"1,430.13",Lakers UK,A031787
North West Leicestershire District Council,31UH ,Environmental Health,EES,Environmental Services,Animals - Boarding Kennels,22/08/2012,1242415,"1,449.40",College Garth Boarding Kennels,A000385
North West Leicestershire District Council,31UH ,Environmental Health,EEHL,Environmental Health & Licensing,Building Services,08/08/2012,1241298,"1,488.81",John Merison BMC Ltd,A001092
North West Leicestershire District Council,31UH ,Housing Repairs,HRAHRM,HRA Housing Repairs & Maintenance,Gas & Electricity - Boiler replacement,15/08/2012,1241805,"1,489.25",Lakers UK,A031787
North West Leicestershire District Council,31UH ,Housing,HRAHM,HRA Housing Management,Fuel - solid,15/08/2012,1241958,"1,527.22",Coal4Energy Ltd,A031928
North West Leicestershire District Council,31UH ,Housing,HRAHM,HRA Housing Management,Fuel - solid,15/08/2012,1241957,"1,552.94",Coal4Energy Ltd,A031928
North West Leicestershire District Council,31UH ,Legal & Democratic,LDLS,Legal Services,Legal - Case Management System inc. associated training and services for installation,01/08/2012,1240990,"1,566.00",FWBS Limited,A037595
North West Leicestershire District Council,31UH ,Planning & Development,ECCTV,Environment - Town Centre/CCTV,Gas & electricity supplier,22/08/2012,1242244,"1,589.12",E.on,A000528
North West Leicestershire District Council,31UH ,Housing Strategy,HS,Community - Housing Strategy,Accommodation - Bed and Breakfast,08/08/2012,1241229,"1,610.00",The Cedars,A027796
North West Leicestershire District Council,31UH ,Property Services,PROPFM,Property Facilities Management,Legionella Risk Assessments,08/08/2012,1241330,"1,621.00",Rentokil Initial UK Limited,A037013
North West Leicestershire District Council,31UH ,Housing,HRAOPS,HRA Older Persons Service,Alarms - older persons system repairs and maintenance,08/08/2012,1241364,"1,625.00",Tunstall Healthcare (UK) Limited,A001701
North West Leicestershire District Council,31UH ,Information Technology,ICT,ICT Services,ICT - Juniper J-Care NextDay Support,22/08/2012,1239252,"1,640.00",Quantix Limited,A037129
North West Leicestershire District Council,31UH ,Street Management,ENOT,Environment Transport,Vehicle Parts - Road Sweeper Brush Manufacturer,01/08/2012,1240977,"1,640.96",Danline International Ltd,A029265
North West Leicestershire District Council,31UH ,Street Management,ESS,Environment - Street Scene,Labour and Materials,01/08/2012,1240796,"1,644.80",D Walker,A038828
North West Leicestershire District Council,31UH ,Legal & Democratic,LDLS,Legal Services,Legal services - town planning,15/08/2012,1241626,"1,656.00",Marrons Consultancies Limited,A016315
North West Leicestershire District Council,31UH ,Corporate Director,HR,Human Resources,Advertising Agency,08/08/2012,1241213,"1,700.32",Euro RSCG Riley,A001395
North West Leicestershire District Council,31UH ,Housing Repairs,HRAHRM,HRA Housing Repairs & Maintenance,Vehicles - Internal Racking,08/08/2012,1241314,"1,701.88",Edstrom of Sweden,A036773
North West Leicestershire District Council,31UH ,Leisure & Culture,LCM,Leisure & Cult Mangt,Grant,15/08/2012,1241630,"1,720.83",Age Concern Leicestershire and Rutland,A033349
North West Leicestershire District Council,31UH ,Housing Repairs,HRAHRM,HRA Housing Repairs & Maintenance,Gas & Electricity - Boiler replacement,01/08/2012,1240912,"1,762.57",Lakers UK,A031787
North West Leicestershire District Council,31UH ,Planning & Development,EBC,Building Control,Consultancy Fees ,01/08/2012,1240843,"1,799.00",Leicestershire County Council,A027423
North West Leicestershire District Council,31UH ,Information Technology,ICT,ICT Services,IT - Telecommunications and data services,15/08/2012,1242002,"1,824.58",Freedom Communications (UK) Ltd,A032826
North West Leicestershire District Council,31UH ,Street Management,ENOP,Environment Parks,Catering supplies,15/08/2012,1241938,"1,856.00",Abbeydale,A034115
North West Leicestershire District Council,31UH ,Street Management,ENOT,Environment Transport,Vehicle Repairs - Trucks,08/08/2012,1241248,"1,980.32",Digraph Transport Supplies Ltd,A000486
North West Leicestershire District Council,31UH ,Housing Repairs,HRAHRM,HRA Housing Repairs & Maintenance,Gas & Electricity - Boiler replacement,01/08/2012,1240925,"1,983.46",Lakers UK,A031787
North West Leicestershire District Council,31UH ,Leisure Centres,HPLC,Hood Park Leisure Centre,Energy - Electricity - Contract 1,22/08/2012,1242150,"1,987.99",Southern Electric,A030266
North West Leicestershire District Council,31UH ,Housing Repairs,HRAHRM,HRA Housing Repairs & Maintenance,Gas & Electricity - Boiler replacement,01/08/2012,1240958,"1,997.17",Lakers UK,A031787
North West Leicestershire District Council,31UH ,Leisure & Culture,CULTYP,Cultural Services Children & YoungPeople,Charity Services - Voluntary services,15/08/2012,1241747,"2,000.00",MRC Community Action,A001208
North West Leicestershire District Council,31UH ,Planning & Development,ECCTV,Environment - Town Centre/CCTV,Security Services - CCTV Maintenance,01/08/2012,1240800,"2,000.00",Quadrant Security Group Limited,A035493
North West Leicestershire District Council,31UH ,Housing Strategy,HS,Community - Housing Strategy,Grant payment,22/08/2012,1242227,"2,024.00",North West Leicestershire,A013575
North West Leicestershire District Council,31UH ,Housing Repairs,HRAHRM,HRA Housing Repairs & Maintenance,Gas & Electricity - Boiler replacement,08/08/2012,1241560,"2,065.83",Lakers UK,A031787
North West Leicestershire District Council,31UH ,Environmental Health,EES,Environmental Services,Gas & electricity supplier,01/08/2012,1240809,"2,069.36",E.ON Energy Electricity Income Account,A028766
North West Leicestershire District Council,31UH ,Housing Repairs,HRAHRM,HRA Housing Repairs & Maintenance,Gas & Electricity - Boiler replacement,01/08/2012,1240907,"2,137.87",Lakers UK,A031787
North West Leicestershire District Council,31UH ,Planning & Development,EBC,Building Control,Consultancy Fees ,22/08/2012,1242247,"2,163.00",Leicestershire County Council,A027423
North West Leicestershire District Council,31UH ,Housing Repairs,HRAHRM,HRA Housing Repairs & Maintenance,Gas & Electricity - Boiler replacement,01/08/2012,1240959,"2,190.93",Lakers UK,A031787
North West Leicestershire District Council,31UH ,Housing Repairs,HRAHRM,HRA Housing Repairs & Maintenance,Building Advice - Construction Safety Advice,22/08/2012,1242387,"2,200.00",Cope Safety Management Limited,A036053
North West Leicestershire District Council,31UH ,Housing Repairs,HRAHRM,HRA Housing Repairs & Maintenance,Gas & Electricity - Boiler replacement,01/08/2012,1240928,"2,216.33",Lakers UK,A031787
North West Leicestershire District Council,31UH ,Leisure Centres,HLC,Hermitage Leisure Centre,Energy - Electricity - Contract 1,22/08/2012,1242109,"2,273.27",Southern Electric,A030266
North West Leicestershire District Council,31UH ,Housing Repairs,HRAHRM,HRA Housing Repairs & Maintenance,Fuel servicing (Hsg Maintenance),01/08/2012,1240808,"2,281.29",Elite Sweep Service,A035675
North West Leicestershire District Council,31UH ,Environmental Health,EES,Environmental Services,Repairs and Maintenance,01/08/2012,1241124,"2,340.00",JJ Plumbing & Tiling,A038452
North West Leicestershire District Council,31UH ,Leisure Centres,HPLC,Hood Park Leisure Centre,Water - Sewerage services,22/08/2012,1242149,"2,344.82",Severn Trent Water Limited,A001468
North West Leicestershire District Council,31UH ,Communications,CP,Corporate - Communications,Advertising - Full page advert in B2B green newsletter,15/08/2012,1242073,"2,349.00",Local Lifestyle Limited,A037318
North West Leicestershire District Council,31UH ,Housing Repairs,HRAHRM,HRA Housing Repairs & Maintenance,Gas & Electricity - Boiler replacement,08/08/2012,1241564,"2,400.00",Lakers UK,A031787
North West Leicestershire District Council,31UH ,Housing,HRAPBS,HRA Performance & Business Support,IT - Software - Performance Management,15/08/2012,1242005,"2,425.00",Hitec (Laboratories) Ltd TA Ten Sfotware,A030422
North West Leicestershire District Council,31UH ,Housing Repairs,HRAHRM,HRA Housing Repairs & Maintenance,Gas & Electricity - Boiler replacement,01/08/2012,1240926,"2,456.01",Lakers UK,A031787
North West Leicestershire District Council,31UH ,Environmental Health,EES,Environmental Services,Grant,15/08/2012,1241996,"2,499.20",EE & JM Thompson,A027562
North West Leicestershire District Council,31UH ,Finance,FINPLA,Financial Planning,Insurance policies,08/08/2012,1241317,"2,500.00",Zurich Insurance Company,A001836
North West Leicestershire District Council,31UH ,Housing Strategy,HS,Community - Housing Strategy,Grants,22/08/2012,1242213,"2,500.00",East Midlands Housing Assocn,A000530
North West Leicestershire District Council,31UH ,Housing Repairs,HRAHRM,HRA Housing Repairs & Maintenance,Gas & Electricity - Boiler replacement,08/08/2012,1241522,"2,521.79",Lakers UK,A031787
North West Leicestershire District Council,31UH ,Housing Repairs,HRAHRM,HRA Housing Repairs & Maintenance,Gas & Electricity - Boiler replacement,01/08/2012,1240906,"2,730.42",Lakers UK,A031787
North West Leicestershire District Council,31UH ,Corporate Director,HR,Human Resources,Charity Services - Childcare Vouchers,22/08/2012,1242214,"2,745.00",PES Limited,A035521
North West Leicestershire District Council,31UH ,Housing Repairs,HRAHRM,HRA Housing Repairs & Maintenance,Gas & Electricity - Boiler replacement,01/08/2012,1240904,"2,752.82",Lakers UK,A031787
North West Leicestershire District Council,31UH ,Corporate Director,HR,Human Resources,Leasing - Vehicles,01/08/2012,1240833,"2,784.00",Arnold Clark Vehicle Management,A035549
North West Leicestershire District Council,31UH ,Street Management,ENOT,Environment Transport,Vehicle Parts - Recycling Vehicles ,01/08/2012,1240776,"2,789.09",Terberg Matec UK Limited,A001647
North West Leicestershire District Council,31UH ,Housing Strategy,HS,Community - Housing Strategy,Accommodation - Bed and Breakfast,08/08/2012,1241231,"2,800.00",The Cedars,A027796
North West Leicestershire District Council,31UH ,Information Technology,ICT,ICT Services,Telecommunications,01/08/2012,1240801,"2,897.99",Cable & Wireless Worldwide,A038473
North West Leicestershire District Council,31UH ,Planning & Development,EBC,Building Control,IT - Scanning equipment,07/11/2012,1241292,"3,084.58",Idox Software Ltd,A034157
North West Leicestershire District Council,31UH ,Housing Repairs,HRAHRM,HRA Housing Repairs & Maintenance,Gas & Electricity - Boiler replacement,01/08/2012,1240961,"3,200.59",Lakers UK,A031787
North West Leicestershire District Council,31UH ,Environmental Health,EES,Environmental Services,Grants,22/08/2012,1242065,"3,297.03",Adaptions,A038668
North West Leicestershire District Council,31UH ,Street Management,ENOT,Environment Transport,Tyre Supplier,01/08/2012,1240840,"3,380.00",Stapletons Tyre Service Ltd,A034248
North West Leicestershire District Council,31UH ,Housing Repairs,HRAHRM,HRA Housing Repairs & Maintenance,Gas & Electricity - Boiler replacement,01/08/2012,1240863,"3,416.46",Lakers UK,A031787
North West Leicestershire District Council,31UH ,Property Services,PROPFM,Property Facilities Management,Energy - Electricity - Contract 1,15/08/2012,1242006,"3,540.14",Southern Electric,A030266
North West Leicestershire District Council,31UH ,Environmental Health,EES,Environmental Services,Grant payment,01/08/2012,1241126,"3,555.00",Leicestershire County Council,A038469
North West Leicestershire District Council,31UH ,Housing Strategy,HS,Community - Housing Strategy,Accommodation - Bed and Breakfast,01/08/2012,1240989,"3,575.00",The Cedars,A027796
North West Leicestershire District Council,31UH ,Housing Repairs,HRAHRM,HRA Housing Repairs & Maintenance,Gas & Electricity - Boiler replacement,01/08/2012,1240905,"3,667.66",Lakers UK,A031787
North West Leicestershire District Council,31UH ,Housing Repairs,HRAHRM,HRA Housing Repairs & Maintenance,Gas & Electricity - Boiler replacement,15/08/2012,1241882,"3,674.29",Lakers UK,A031787
North West Leicestershire District Council,31UH ,Planning & Development,ECCTV,Environment - Town Centre/CCTV,Security - Provide Monitoring Services in respect of CCTV,15/08/2012,1241933,"3,923.00",Premier Security Services (Midlands) Limited,A038132
North West Leicestershire District Council,31UH ,Environmental Health,EES,Environmental Services,Grants,01/08/2012,1241125,"4,213.16",Adaptions,A038668
North West Leicestershire District Council,31UH ,Information Technology,ICT,ICT Services,IT - Telephone and computing,22/08/2012,1242061,"4,512.44",Virgin Media Business,A008908
North West Leicestershire District Council,31UH ,Housing Repairs,HRAHRM,HRA Housing Repairs & Maintenance,Legionella Risk Assessments,08/08/2012,1241569,"4,845.00",Rentokil Initial UK Limited,A037013
North West Leicestershire District Council,31UH ,Housing,HRAPBS,HRA Performance & Business Support,Grants,22/08/2012,1242166,"4,905.00",Home-Start NWL,A035295
North West Leicestershire District Council,31UH ,Housing,HRAPBS,HRA Performance & Business Support,Subscription - Local Govt Network,15/08/2012,1241636,"5,000.00",The Local Futures Group Limited,A036556
North West Leicestershire District Council,31UH ,Housing Repairs,HRAHRM,HRA Housing Repairs & Maintenance,Gas & Electricity - Boiler replacement,08/08/2012,1241478,"5,262.28",Lakers UK,A031787
North West Leicestershire District Council,31UH ,Housing Repairs,HRAHRM,HRA Housing Repairs & Maintenance,Building Services,15/08/2012,1241739,"5,457.03",J Tomlinson Ltd,A033342
North West Leicestershire District Council,31UH ,Leisure & Culture,CULTYP,Cultural Services Children & YoungPeople,Grants,15/08/2012,1241923,"5,579.80",Home-Start NWL,A035295
North West Leicestershire District Council,31UH ,Legal & Democratic,LDELC,Electoral & Land Charges,Mail services,15/08/2012,1241991,"6,335.42",Royal Mail Group Plc,A001418
North West Leicestershire District Council,31UH ,Finance,EXCH,Exchequer Services,Electricity - Supply for contract 4,22/08/2012,1242422,"6,668.77",British Gas Business,A034733
North West Leicestershire District Council,31UH ,Legal & Democratic,LDLS,Legal Services,Legal - Case Management System inc. associated training and services for installation,01/08/2012,1240974,"6,924.00",FWBS Limited,A037595
North West Leicestershire District Council,31UH ,Finance,EXCH,Exchequer Services,Recruitment - Agency Broker,22/08/2012,1242083,"7,194.02",Comensura Limited,A036958
North West Leicestershire District Council,31UH ,Housing Repairs,HRAHRM,HRA Housing Repairs & Maintenance,Fuel servicing (Hsg Maintenance),08/08/2012,1241443,"7,212.50",Elite Sweep Service,A035675
North West Leicestershire District Council,31UH ,Leisure & Culture,CULTYP,Cultural Services Children & YoungPeople,Grants,15/08/2012,1241742,"7,300.00",Home-Start NWL,A035295
North West Leicestershire District Council,31UH ,Leisure & Culture,CULTYP,Cultural Services Children & YoungPeople,home safety advice/equipment/assessment,15/08/2012,1241744,"7,424.00",The Firebird Trust Ltd,A039074
North West Leicestershire District Council,31UH ,Information Technology,ICT,ICT Services,Electronic circuits maintenance,01/08/2012,1241116,"7,599.90",Chloride Electronics Limited,A035119
North West Leicestershire District Council,31UH ,Finance,EXCH,Exchequer Services,Recruitment - Agency Broker,08/08/2012,1241238,"7,994.13",Comensura Limited,A036958
North West Leicestershire District Council,31UH ,Housing Strategy,HS,Community - Housing Strategy,Charity Services - Voluntary services,15/08/2012,1241743,"8,000.00",MRC Community Action,A001208
North West Leicestershire District Council,31UH ,Property Services,PROPFM,Property Facilities Management,Security Systems - Fire Detection,01/08/2012,1241048,"8,490.00",TECSERV UK LIMITED,A028261
North West Leicestershire District Council,31UH ,Housing,HRAPBS,HRA Performance & Business Support,IT Services - Data Capture & Document Scanning,08/08/2012,1241205,"9,305.00",Bramble.cc Limited,A036895
North West Leicestershire District Council,31UH ,Housing Strategy,HS,Community - Housing Strategy,Grants,22/08/2012,1242228,"9,355.00",East Midlands Housing Assocn,A000530
North West Leicestershire District Council,31UH ,Environment Directorate,ENVDS,Environment - Directorate Support,Consultancy - Housing Strategy,22/08/2012,1242371,"9,645.20",GLHS Limited,A038376
North West Leicestershire District Council,31UH ,Leisure & Culture,CULTYP,Cultural Services Children & YoungPeople,Suporting Parents,15/08/2012,1241748,"10,000.00",The Mighty Creatives,A039092
North West Leicestershire District Council,31UH ,Housing Repairs,HRAHRM,HRA Housing Repairs & Maintenance,Building - General Maintenance works - Minor framework,01/08/2012,1240965,"10,280.00",Alf Wright Construction Limited,A036239
North West Leicestershire District Council,31UH ,Finance,EXCH,Exchequer Services,Recruitment - Agency Broker,01/08/2012,1240828,"10,315.69",Comensura Limited,A036958
North West Leicestershire District Council,31UH ,Chief Exec,CHEX,Chief Executive,Rent payments,08/08/2012,1241287,"11,250.00",Leicestershire County Council,A000950
North West Leicestershire District Council,31UH ,Finance,EXCH,Exchequer Services,Recruitment - Agency Broker,08/08/2012,1241593,"12,104.88",Comensura Limited,A036958
North West Leicestershire District Council,31UH ,Finance,EXCH,Exchequer Services,Energy - Gas - Contract 2 + 5 + 6,21/08/2012,1242255,"12,163.36",Corona Energy Retail 4 Ltd,A035709
North West Leicestershire District Council,31UH ,Finance,EXCH,Exchequer Services,Energy - Gas - Contract 2 + 5 + 6,21/08/2012,1242257,"12,540.70",Corona Energy Retail 4 Ltd,A035709
North West Leicestershire District Council,31UH ,Legal & Democratic,LDLS,Legal Services,Shared Service/ Leisure Service Project,15/08/2012,1241926,"13,250.00",Charnwood Borough Council,A010659
North West Leicestershire District Council,31UH ,Finance,FINPLA,Financial Planning,Training,08/08/2012,1241358,"13,450.00",Hinckley & Bosworth Borough Council,A000770
North West Leicestershire District Council,31UH ,Finance,EXCH,Exchequer Services,Energy - Gas - Contract 2 + 5 + 6,14/08/2012,1242004,"15,005.20",Corona Energy Retail 4 Ltd,A035709
North West Leicestershire District Council,31UH ,Finance,EXCH,Exchequer Services,Recruitment - Agency Broker,22/08/2012,1242420,"15,312.17",Comensura Limited,A036958
North West Leicestershire District Council,31UH ,Planning & Development,EDC,Environment - Development Control,Consultancy - Town Centre lights,08/08/2012,1241280,"15,497.83",Capita Symonds Limited,A028750
North West Leicestershire District Council,31UH ,Street Management,ENOT,Environment Transport,Fuel ,15/08/2012,1241930,"16,826.62",Pace Petroleum Ltd,A034942
North West Leicestershire District Council,31UH ,Street Management,ENOWM,Environment Waste Management,Waste Disposal - Recyclable containers,22/08/2012,1241990,"19,753.20",Straight Plc,A024906
North West Leicestershire District Council,31UH ,Environmental Health,EES,Environmental Services,Grant,01/08/2012,1241123,"22,492.80",EE & JM Thompson,A027562
North West Leicestershire District Council,31UH ,Planning & Development,EPP,Environment Planning Policy,Consultancy Fees ,15/08/2012,1241602,"23,414.45",Leicestershire County Council,A027423
North West Leicestershire District Council,31UH ,Housing Repairs,HRAHRM,HRA Housing Repairs & Maintenance,Consultancy - Property Professional Services,01/08/2012,1240186,"25,434.45",Savills Commercial Limited,A032547
North West Leicestershire District Council,31UH ,Housing Repairs,HRAHRM,HRA Housing Repairs & Maintenance,Housing Repairs,03/08/2012,1241275,"44,242.93",Collective Enterprises Ltd,A036453
North West Leicestershire District Council,31UH ,Street Management,ENOT,Environment Transport,Vehicle Services - Gritter Maintenance,01/08/2012,1240827,"67,694.00",Aebi Schmidt Uk Limited,A017053
North West Leicestershire District Council,31UH ,Finance,FINPLA,Financial Planning,Finance Company,21/08/2012,1242260,"93,122.17",Barclays Bank Plc,A031543
North West Leicestershire District Council,31UH ,Street Management,ENOT,Environment Transport,Waste - Waste handling equipment manufacturer,08/08/2012,1241018,"170,924.00",Geesink Norba Limited,A017895
North West Leicestershire District Council,31UH ,Finance,FINPLA,Financial Planning,Policing,21/08/2012,1242357,"550,632.00",Leicestershire Police Authority,A007096
North West Leicestershire District Council,31UH ,Finance,FINPLA,Financial Planning,Policing,21/08/2012,1242358,"550,632.00",Leicestershire Police Authority,A007096
North West Leicestershire District Council,31UH ,Finance,FINPLA,Financial Planning,Policing,21/08/2012,1242360,"550,632.00",Leicestershire Police Authority,A007096
